[Event "Live Chess"]
[Site "Chess.com"]
[Date "2011.01.23"]
[Round "-"]
[White "madturk"]
[Black "hipposcottimus"]
[Result "0-1"]
[CurrentPosition "1k6/1pp1K3/p7/8/6N1/8/8/7q w - -"]
[Timezone "UTC"]
[ECO "C23"]
[ECOUrl "https://www.chess.com/openings/Bishops-Opening-2...Nc6-3.d3-Nf6"]
[UTCDate "2011.01.23"]
[UTCTime "23:53:20"]
[WhiteElo "1374"]
[BlackElo "1435"]
[TimeControl "600"]
[Termination "hipposcottimus won by resignation"]
[StartTime "23:53:20"]
[EndDate "2011.01.24"]
[EndTime "00:03:31"]
[Link "https://www.chess.com/game/live/90697660"]

1. e4 {[%clk 0:10:00]} 1... e5 {[%clk 0:10:00]} 2. Bc4 {[%clk 0:09:57.9]} 2... Nc6 {[%clk 0:09:58.8]} 3. d3 {[%clk 0:09:55.4]} 3... Nf6 {[%clk 0:09:47.2]} 4. Bg5 {[%clk 0:09:51.7]} 4... d5 {[%clk 0:09:43.6]} 5. Bxf6 {[%clk 0:09:47.9]} 5... Qxf6 {[%clk 0:09:39.9]} 6. Bxd5 {[%clk 0:09:46.2]} 6... Bc5 {[%clk 0:09:33.5]} 7. Qf3 {[%clk 0:09:42.1]} 7... Nd4 {[%clk 0:09:09.1]} 8. Qxf6 {[%clk 0:09:39.7]} 8... gxf6 {[%clk 0:09:07]} 9. Bb3 {[%clk 0:09:37]} 9... Be6 {[%clk 0:08:52]} 10. Kd2 {[%clk 0:09:28.7]} 10... Bxb3 {[%clk 0:08:42.8]} 11. axb3 {[%clk 0:09:25.8]} 11... f5 {[%clk 0:08:36.3]} 12. Ne2 {[%clk 0:09:07.3]} 12... fxe4 {[%clk 0:08:30.6]} 13. Nxd4 {[%clk 0:09:05.2]} 13... Bxd4 {[%clk 0:08:03.1]} 14. c3 {[%clk 0:09:01.1]} 14... Bxf2 {[%clk 0:07:59.1]} 15. dxe4 {[%clk 0:08:59.4]} 15... O-O-O+ {[%clk 0:07:56.6]} 16. Ke2 {[%clk 0:08:58.1]} 16... Bb6 {[%clk 0:07:48.3]} 17. Nd2 {[%clk 0:08:51.6]} 17... Rhg8 {[%clk 0:07:41.3]} 18. g3 {[%clk 0:08:47.1]} 18... Rg4 {[%clk 0:07:40]} 19. Rhd1 {[%clk 0:08:29.2]} 19... h5 {[%clk 0:07:20.2]} 20. Kf3 {[%clk 0:08:21.5]} 20... Rg5 {[%clk 0:07:07.6]} 21. h4 {[%clk 0:08:15.1]} 21... Rg4 {[%clk 0:07:02.9]} 22. Nc4 {[%clk 0:08:13.1]} 22... Rdg8 {[%clk 0:06:53.7]} 23. Rg1 {[%clk 0:07:55.4]} 23... Bxg1 {[%clk 0:06:34.9]} 24. Rxg1 {[%clk 0:07:51.6]} 24... a6 {[%clk 0:06:30.1]} 25. Nxe5 {[%clk 0:07:49.7]} 25... Rxh4 {[%clk 0:06:14.3]} 26. Rd1 {[%clk 0:07:41.1]} 26... Rh3 {[%clk 0:06:07.6]} 27. Nxf7 {[%clk 0:07:28]} 27... Rgxg3+ {[%clk 0:06:03.7]} 28. Kf4 {[%clk 0:07:22.6]} 28... Kb8 {[%clk 0:05:36.7]} 29. Nh6 {[%clk 0:06:53.6]} 29... Rf3+ {[%clk 0:05:26]} 30. Ke5 {[%clk 0:06:50.3]} 30... Rf2 {[%clk 0:05:11.5]} 31. Rb1 {[%clk 0:06:35.2]} 31... Rhh2 {[%clk 0:05:06]} 32. Ke6 {[%clk 0:06:24.9]} 32... Rxb2 {[%clk 0:05:02.3]} 33. Rxb2 {[%clk 0:06:23.5]} 33... Rxb2 {[%clk 0:05:00.7]} 34. Ke7 {[%clk 0:06:21.6]} 34... Rxb3 {[%clk 0:04:59.2]} 35. e5 {[%clk 0:06:20.2]} 35... Rxc3 {[%clk 0:04:56.8]} 36. e6 {[%clk 0:06:19.1]} 36... h4 {[%clk 0:04:55.3]} 37. Kf7 {[%clk 0:06:14.9]} 37... h3 {[%clk 0:04:51.3]} 38. e7 {[%clk 0:06:13.9]} 38... Rf3+ {[%clk 0:04:30.1]} 39. Kg6 {[%clk 0:06:04.5]} 39... Re3 {[%clk 0:04:23.1]} 40. Kf7 {[%clk 0:06:01.6]} 40... h2 {[%clk 0:04:20.6]} 41. Ng4 {[%clk 0:05:59.3]} 41... Rxe7+ {[%clk 0:04:16.8]} 42. Kxe7 {[%clk 0:05:55.6]} 42... h1=Q {[%clk 0:04:15.2]} 0-1

[Event "Live Chess"]
[Site "Chess.com"]
[Date "2011.01.23"]
[Round "-"]
[White "hipposcottimus"]
[Black "MrL"]
[Result "1-0"]
[CurrentPosition "8/Q7/8/1P4pp/4k3/8/P5PP/7K b - -"]
[Timezone "UTC"]
[ECO "C20"]
[ECOUrl "https://www.chess.com/openings/Kings-Pawn-Opening-The-Whale-Variation"]
[UTCDate "2011.01.23"]
[UTCTime "21:48:54"]
[WhiteElo "1428"]
[BlackElo "1361"]
[TimeControl "360+10"]
[Termination "hipposcottimus won by resignation"]
[StartTime "21:48:54"]
[EndDate "2011.01.23"]
[EndTime "22:07:05"]
[Link "https://www.chess.com/game/live/90666407"]

1. e4 {[%clk 0:06:00]} 1... e5 {[%clk 0:06:00]} 2. c4 {[%clk 0:06:02.6]} 2... Bc5 {[%clk 0:06:06.3]} 3. Nf3 {[%clk 0:06:09.7]} 3... d6 {[%clk 0:06:14.2]} 4. d4 {[%clk 0:06:17.2]} 4... exd4 {[%clk 0:06:22.2]} 5. Bd3 {[%clk 0:06:23.9]} 5... Bg4 {[%clk 0:06:29.4]} 6. O-O {[%clk 0:06:32.3]} 6... Nf6 {[%clk 0:06:36.7]} 7. Re1 {[%clk 0:06:29.8]} 7... O-O {[%clk 0:06:42]} 8. Bg5 {[%clk 0:06:30.8]} 8... Nbd7 {[%clk 0:06:49.5]} 9. Nbd2 {[%clk 0:06:38.1]} 9... h6 {[%clk 0:06:41.7]} 10. Bxf6 {[%clk 0:06:33.8]} 10... Qxf6 {[%clk 0:06:43.6]} 11. Qc2 {[%clk 0:06:37.9]} 11... Ne5 {[%clk 0:06:44.9]} 12. Nxe5 {[%clk 0:06:28.4]} 12... dxe5 {[%clk 0:06:46.8]} 13. Rf1 {[%clk 0:06:11.7]} 13... Qg6 {[%clk 0:06:40.8]} 14. f4 {[%clk 0:06:12.7]} 14... exf4 {[%clk 0:05:50]} 15. Rxf4 {[%clk 0:06:11.3]} 15... Be2 {[%clk 0:05:32.8]} 16. Nf3 {[%clk 0:04:51.6]} 16... Bxf3 {[%clk 0:05:18.5]} 17. Rxf3 {[%clk 0:04:58.8]} 17... Rae8 {[%clk 0:05:10.2]} 18. Rg3 {[%clk 0:04:54.7]} 18... Qh7 {[%clk 0:04:30.2]} 19. Kh1 {[%clk 0:04:17.3]} 19... h5 {[%clk 0:04:14.6]} 20. Qd2 {[%clk 0:02:57.1]} 20... Re5 {[%clk 0:03:54.3]} 21. b4 {[%clk 0:02:32.1]} 21... Bd6 {[%clk 0:03:43.3]} 22. c5 {[%clk 0:02:39.3]} 22... Rxc5 {[%clk 0:03:49.1]} 23. e5 {[%clk 0:02:27.7]} 23... Qxd3 {[%clk 0:03:32]} 24. Qxd3 {[%clk 0:02:32.8]} 24... Rxe5 {[%clk 0:03:34.8]} 25. Qxd4 {[%clk 0:02:36.1]} 25... f6 {[%clk 0:03:17.9]} 26. Re3 {[%clk 0:02:18.2]} 26... Rb5 {[%clk 0:03:09.7]} 27. Qc4+ {[%clk 0:02:15.5]} 27... Kh8 {[%clk 0:03:12.6]} 28. Qxb5 {[%clk 0:02:17.7]} 28... Be5 {[%clk 0:03:19.5]} 29. Rd1 {[%clk 0:02:14.4]} 29... g6 {[%clk 0:02:46.5]} 30. Rxe5 {[%clk 0:02:10.9]} 30... fxe5 {[%clk 0:02:52.4]} 31. Qxe5+ {[%clk 0:02:18.4]} 31... Kg8 {[%clk 0:02:59.1]} 32. Qxc7 {[%clk 0:02:19.9]} 32... Rf7 {[%clk 0:03:05.2]} 33. Qc8+ {[%clk 0:02:27.5]} 33... Kg7 {[%clk 0:03:13.9]} 34. Rd7 {[%clk 0:02:30.1]} 34... b5 {[%clk 0:03:20.3]} 35. Rxf7+ {[%clk 0:02:37.9]} 35... Kxf7 {[%clk 0:03:28.7]} 36. Qd7+ {[%clk 0:02:46.4]} 36... Kf6 {[%clk 0:03:34.4]} 37. Qxb5 {[%clk 0:02:55.4]} 37... g5 {[%clk 0:03:40.8]} 38. Qa6+ {[%clk 0:03:03.5]} 38... Kf5 {[%clk 0:03:49.2]} 39. Qxa7 {[%clk 0:03:12.4]} 39... Ke4 {[%clk 0:03:57.6]} 40. b5 {[%clk 0:03:21.2]} 1-0

[Event "Live Chess"]
[Site "Chess.com"]
[Date "2011.01.23"]
[Round "-"]
[White "MrL"]
[Black "hipposcottimus"]
[Result "1-0"]
[CurrentPosition "5R2/pp4N1/2p5/6k1/7p/3Pn2B/PPPK4/8 b - -"]
[Timezone "UTC"]
[ECO "C23"]
[ECOUrl "https://www.chess.com/openings/Bishops-Opening-Khan-Gambit"]
[UTCDate "2011.01.23"]
[UTCTime "21:23:36"]
[WhiteElo "1368"]
[BlackElo "1421"]
[TimeControl "360+10"]
[Termination "MrL won on time"]
[StartTime "21:23:36"]
[EndDate "2011.01.23"]
[EndTime "21:47:58"]
[Link "https://www.chess.com/game/live/90659053"]

1. e4 {[%clk 0:06:00]} 1... e5 {[%clk 0:06:00]} 2. Bc4 {[%clk 0:06:07.9]} 2... d5 {[%clk 0:06:07.9]} 3. Bxd5 {[%clk 0:06:11.4]} 3... Nf6 {[%clk 0:06:13.9]} 4. Nc3 {[%clk 0:06:12.3]} 4... Bd6 {[%clk 0:06:03.8]} 5. Nf3 {[%clk 0:06:14.7]} 5... O-O {[%clk 0:06:05.8]} 6. O-O {[%clk 0:06:15.8]} 6... c6 {[%clk 0:06:15.1]} 7. Bb3 {[%clk 0:06:21.6]} 7... Bg4 {[%clk 0:06:23.9]} 8. d3 {[%clk 0:06:25.1]} 8... h6 {[%clk 0:06:30.3]} 9. h3 {[%clk 0:06:28.7]} 9... Bh5 {[%clk 0:06:39.1]} 10. g4 {[%clk 0:06:20]} 10... Nxg4 {[%clk 0:06:46.3]} 11. hxg4 {[%clk 0:06:28.5]} 11... Bxg4 {[%clk 0:06:55.6]} 12. Kg2 {[%clk 0:06:02.7]} 12... Qf6 {[%clk 0:06:01.5]} 13. Rh1 {[%clk 0:05:42.7]} 13... Qg6 {[%clk 0:06:05.2]} 14. Be3 {[%clk 0:05:03]} 14... Kh8 {[%clk 0:04:12.6]} 15. Kf1 {[%clk 0:04:01.4]} 15... f5 {[%clk 0:04:06.5]} 16. Nh4 {[%clk 0:03:50.2]} 16... Qh5 {[%clk 0:03:50.6]} 17. f3 {[%clk 0:03:37.8]} 17... fxe4 {[%clk 0:03:38.1]} 18. Nxe4 {[%clk 0:02:39.4]} 18... Rxf3+ {[%clk 0:03:05.2]} 19. Nxf3 {[%clk 0:01:49]} 19... Qxh1+ {[%clk 0:03:11]} 20. Kf2 {[%clk 0:01:37.1]} 20... Qh5 {[%clk 0:02:12.6]} 21. Ng3 {[%clk 0:01:30]} 21... Qf7 {[%clk 0:02:01.7]} 22. Qh1 {[%clk 0:01:21.6]} 22... Qf8 {[%clk 0:01:29.8]} 23. Rf1 {[%clk 0:00:45]} 23... Bc5 {[%clk 0:01:22.2]} 24. Ke2 {[%clk 0:00:42.1]} 24... Bxe3 {[%clk 0:01:24.1]} 25. Kxe3 {[%clk 0:00:49]} 25... Qf4+ {[%clk 0:01:24.9]} 26. Kf2 {[%clk 0:00:54.2]} 26... Nd7 {[%clk 0:01:25]} 27. Ne2 {[%clk 0:00:54.6]} 27... Qf8 {[%clk 0:01:15.3]} 28. Ke1 {[%clk 0:00:49.6]} 28... Nf6 {[%clk 0:00:53.2]} 29. Nxe5 {[%clk 0:00:51.6]} 29... Bh5 {[%clk 0:00:43.7]} 30. Qxh5 {[%clk 0:00:27.4]} 30... Nxh5 {[%clk 0:00:52.6]} 31. Ng6+ {[%clk 0:00:30.9]} 31... Kh7 {[%clk 0:00:54.3]} 32. Nxf8+ {[%clk 0:00:38.3]} 32... Rxf8 {[%clk 0:01:03.5]} 33. Rxf8 {[%clk 0:00:45.5]} 33... Nf6 {[%clk 0:01:13.1]} 34. Be6 {[%clk 0:00:43.5]} 34... h5 {[%clk 0:01:17.2]} 35. Bf5+ {[%clk 0:00:42.3]} 35... Kh6 {[%clk 0:01:01.3]} 36. Bh3 {[%clk 0:00:44.6]} 36... Kg5 {[%clk 0:01:06]} 37. Nd4 {[%clk 0:00:47.6]} 37... Kh4 {[%clk 0:01:03.6]} 38. Bf1 {[%clk 0:00:54.4]} 38... Ng4 {[%clk 0:01:05.2]} 39. Nf5+ {[%clk 0:00:56]} 39... Kg5 {[%clk 0:01:07.2]} 40. Nxg7 {[%clk 0:01:02.6]} 40... h4 {[%clk 0:01:15.8]} 41. Bh3 {[%clk 0:00:48.5]} 41... Ne3 {[%clk 0:01:04.7]} 42. Kd2 {[%clk 0:00:44.3]} 1-0

[Event "Live Chess"]
[Site "Chess.com"]
[Date "2011.01.23"]
[Round "-"]
[White "hipposcottimus"]
[Black "MrL"]
[Result "1-0"]
[CurrentPosition "7k/p1p3r1/5Q1p/5p2/8/2N5/P3KP1P/6R1 b - -"]
[Timezone "UTC"]
[ECO "C51"]
[ECOUrl "https://www.chess.com/openings/Giuoco-Piano-Game-Evans-Accepted-McDonnell-Defense-6.O-O"]
[UTCDate "2011.01.23"]
[UTCTime "21:08:09"]
[WhiteElo "1430"]
[BlackElo "1357"]
[TimeControl "360+10"]
[Termination "hipposcottimus won by resignation"]
[StartTime "21:08:09"]
[EndDate "2011.01.23"]
[EndTime "21:22:30"]
[Link "https://www.chess.com/game/live/90655092"]

1. e4 {[%clk 0:06:00]} 1... e5 {[%clk 0:06:00]} 2. Nf3 {[%clk 0:06:08.4]} 2... Nc6 {[%clk 0:06:03.3]} 3. Bc4 {[%clk 0:06:15.7]} 3... Bc5 {[%clk 0:06:12]} 4. b4 {[%clk 0:06:24]} 4... Bxb4 {[%clk 0:06:12.9]} 5. c3 {[%clk 0:06:33]} 5... Bc5 {[%clk 0:06:20.8]} 6. O-O {[%clk 0:06:41.1]} 6... Nf6 {[%clk 0:06:28.7]} 7. d4 {[%clk 0:06:50.3]} 7... exd4 {[%clk 0:06:36.9]} 8. cxd4 {[%clk 0:06:58.4]} 8... Bb4 {[%clk 0:06:09.4]} 9. Bd2 {[%clk 0:07:03.8]} 9... Nxe4 {[%clk 0:06:07]} 10. Bxb4 {[%clk 0:06:44.9]} 10... Nxb4 {[%clk 0:06:07.5]} 11. Re1 {[%clk 0:06:48]} 11... d5 {[%clk 0:06:15.2]} 12. Qa4+ {[%clk 0:06:48.1]} 12... Nc6 {[%clk 0:06:21.3]} 13. Bxd5 {[%clk 0:06:44.6]} 13... Qxd5 {[%clk 0:06:25.3]} 14. Nc3 {[%clk 0:06:53]} 14... Qf5 {[%clk 0:04:58.2]} 15. Rxe4+ {[%clk 0:06:49]} 15... Be6 {[%clk 0:05:02.4]} 16. d5 {[%clk 0:06:38.7]} 16... O-O {[%clk 0:05:10.7]} 17. dxe6 {[%clk 0:06:25.1]} 17... fxe6 {[%clk 0:05:13.1]} 18. Rh4 {[%clk 0:05:25]} 18... g5 {[%clk 0:04:53.8]} 19. Rh5 {[%clk 0:04:48.7]} 19... Rf6 {[%clk 0:03:19.3]} 20. Rxg5+ {[%clk 0:04:51.4]} 20... Rg6 {[%clk 0:03:27.5]} 21. Rxf5 {[%clk 0:04:59.3]} 21... exf5 {[%clk 0:03:36.3]} 22. Qc4+ {[%clk 0:04:41.9]} 22... Kh8 {[%clk 0:03:31.2]} 23. Nh4 {[%clk 0:04:31.5]} 23... Rg4 {[%clk 0:03:34.5]} 24. Qb5 {[%clk 0:03:56.9]} 24... Rxh4 {[%clk 0:03:22.6]} 25. Qxb7 {[%clk 0:04:02.7]} 25... Rg8 {[%clk 0:03:23.8]} 26. Qxc6 {[%clk 0:04:07.9]} 26... Rhg4 {[%clk 0:03:31.8]} 27. Qf6+ {[%clk 0:04:13.2]} 27... R8g7 {[%clk 0:03:33.3]} 28. Rd1 {[%clk 0:04:16.4]} 28... Rxg2+ {[%clk 0:03:40]} 29. Kf1 {[%clk 0:04:25.6]} 29... Rg1+ {[%clk 0:03:29.4]} 30. Ke2 {[%clk 0:04:32.5]} 30... h6 {[%clk 0:03:25.5]} 31. Rxg1 {[%clk 0:04:38.8]} 1-0

[Event "Live Chess"]
[Site "Chess.com"]
[Date "2011.01.23"]
[Round "-"]
[White "hipposcottimus"]
[Black "MrL"]
[Result "1-0"]
[CurrentPosition "3r1r1k/p3b3/2p1Bp2/4pN2/1n1pN1P1/7R/5P1P/5K2 b - -"]
[Timezone "UTC"]
[ECO "C51"]
[ECOUrl "https://www.chess.com/openings/Giuoco-Piano-Game-Evans-Accepted-McDonnell-Defense-6.O-O"]
[UTCDate "2011.01.23"]
[UTCTime "20:47:29"]
[WhiteElo "1432"]
[BlackElo "1353"]
[TimeControl "360+10"]
[Termination "hipposcottimus won by checkmate"]
[StartTime "20:47:29"]
[EndDate "2011.01.23"]
[EndTime "21:03:48"]
[Link "https://www.chess.com/game/live/90649307"]

1. e4 {[%clk 0:06:00]} 1... e5 {[%clk 0:06:00]} 2. Nf3 {[%clk 0:06:01.1]} 2... Nc6 {[%clk 0:06:07.4]} 3. Bc4 {[%clk 0:06:07.9]} 3... Bc5 {[%clk 0:06:11.7]} 4. b4 {[%clk 0:06:15.5]} 4... Bxb4 {[%clk 0:06:18]} 5. c3 {[%clk 0:06:24.3]} 5... Bc5 {[%clk 0:06:26.8]} 6. O-O {[%clk 0:06:33.2]} 6... Nf6 {[%clk 0:06:34.7]} 7. d4 {[%clk 0:06:41.9]} 7... exd4 {[%clk 0:06:43]} 8. cxd4 {[%clk 0:06:51.1]} 8... Bb4 {[%clk 0:06:51.7]} 9. a3 {[%clk 0:06:59.7]} 9... Ba5 {[%clk 0:06:56.7]} 10. Bg5 {[%clk 0:07:06.3]} 10... O-O {[%clk 0:07:03.7]} 11. e5 {[%clk 0:07:14.1]} 11... h6 {[%clk 0:07:12.7]} 12. Bxf6 {[%clk 0:07:13.7]} 12... gxf6 {[%clk 0:07:20.6]} 13. Nh4 {[%clk 0:06:18.2]} 13... fxe5 {[%clk 0:07:13.5]} 14. Qh5 {[%clk 0:06:09.3]} 14... Qg5 {[%clk 0:07:07.4]} 15. Qxg5+ {[%clk 0:05:35.7]} 15... hxg5 {[%clk 0:07:13.8]} 16. Nf3 {[%clk 0:05:34.9]} 16... Nxd4 {[%clk 0:07:08.1]} 17. Nxg5 {[%clk 0:05:26.9]} 17... Ne6 {[%clk 0:07:07.4]} 18. Ne4 {[%clk 0:05:25.9]} 18... c6 {[%clk 0:07:09.5]} 19. Nd6 {[%clk 0:04:55.7]} 19... b5 {[%clk 0:07:07.4]} 20. Bd3 {[%clk 0:04:55.7]} 20... Ba6 {[%clk 0:06:48.4]} 21. Ra2 {[%clk 0:04:35]} 21... Nf4 {[%clk 0:06:41.5]} 22. Bf5 {[%clk 0:04:20.7]} 22... Rad8 {[%clk 0:06:39.4]} 23. g3 {[%clk 0:04:17.4]} 23... Bc7 {[%clk 0:06:01.3]} 24. Rd2 {[%clk 0:03:50.3]} 24... Nd5 {[%clk 0:06:02.1]} 25. Ne4 {[%clk 0:03:35.9]} 25... Ba5 {[%clk 0:05:58.2]} 26. Rc2 {[%clk 0:03:32.7]} 26... b4 {[%clk 0:06:03.3]} 27. axb4 {[%clk 0:03:25.8]} 27... Bxb4 {[%clk 0:05:59.3]} 28. Nbc3 {[%clk 0:02:40]} 28... Bxf1 {[%clk 0:05:40.4]} 29. Kxf1 {[%clk 0:02:44.7]} 29... f6 {[%clk 0:05:25.9]} 30. Ne2 {[%clk 0:02:46.4]} 30... Be7 {[%clk 0:05:22.9]} 31. g4 {[%clk 0:02:54.1]} 31... Nb4 {[%clk 0:05:18.5]} 32. Rc3 {[%clk 0:02:59.8]} 32... d5 {[%clk 0:05:20.6]} 33. Be6+ {[%clk 0:02:45]} 33... Kg7 {[%clk 0:05:29]} 34. N2g3 {[%clk 0:02:27.3]} 34... d4 {[%clk 0:05:11.5]} 35. Nf5+ {[%clk 0:02:33.5]} 35... Kh8 {[%clk 0:05:07.9]} 36. Rh3# {[%clk 0:02:40.9]} 1-0

[Event "Live Chess"]
[Site "Chess.com"]
[Date "2011.01.23"]
[Round "-"]
[White "MrL"]
[Black "hipposcottimus"]
[Result "0-1"]
[CurrentPosition "8/8/p7/8/1p3p1k/r4P1P/5K2/8 w - -"]
[Timezone "UTC"]
[ECO "C50"]
[ECOUrl "https://www.chess.com/openings/Italian-Game"]
[UTCDate "2011.01.23"]
[UTCTime "20:19:06"]
[WhiteElo "1360"]
[BlackElo "1425"]
[TimeControl "360+10"]
[Termination "hipposcottimus won by resignation"]
[StartTime "20:19:06"]
[EndDate "2011.01.23"]
[EndTime "20:46:50"]
[Link "https://www.chess.com/game/live/90641108"]

1. e4 {[%clk 0:06:00]} 1... e5 {[%clk 0:06:00]} 2. Bc4 {[%clk 0:06:07.1]} 2... Nc6 {[%clk 0:06:01.4]} 3. Nf3 {[%clk 0:06:14.4]} 3... Nf6 {[%clk 0:06:08.7]} 4. Ng5 {[%clk 0:06:22.5]} 4... d5 {[%clk 0:06:17.8]} 5. exd5 {[%clk 0:06:30.7]} 5... Na5 {[%clk 0:06:26.9]} 6. Bb5+ {[%clk 0:06:34.8]} 6... Bd7 {[%clk 0:06:34.5]} 7. Bxd7+ {[%clk 0:06:43.2]} 7... Nxd7 {[%clk 0:06:43.8]} 8. d3 {[%clk 0:06:51.6]} 8... Be7 {[%clk 0:06:53.1]} 9. Ne4 {[%clk 0:06:59.5]} 9... O-O {[%clk 0:06:57.1]} 10. O-O {[%clk 0:07:06.2]} 10... b6 {[%clk 0:06:40.7]} 11. c4 {[%clk 0:07:11.8]} 11... f5 {[%clk 0:06:44.8]} 12. Ng3 {[%clk 0:07:16.6]} 12... c6 {[%clk 0:06:42.9]} 13. Bd2 {[%clk 0:07:15.9]} 13... f4 {[%clk 0:05:59.1]} 14. Ne4 {[%clk 0:07:11.8]} 14... cxd5 {[%clk 0:06:05.6]} 15. cxd5 {[%clk 0:07:10]} 15... Nb7 {[%clk 0:05:58.1]} 16. Qb3 {[%clk 0:07:10.8]} 16... Nbc5 {[%clk 0:06:00.4]} 17. Nxc5 {[%clk 0:07:18]} 17... Nxc5 {[%clk 0:06:09.3]} 18. Qc4 {[%clk 0:07:16.7]} 18... Kh8 {[%clk 0:06:06]} 19. Nc3 {[%clk 0:07:06.9]} 19... f3 {[%clk 0:05:47.9]} 20. Ne4 {[%clk 0:06:18.3]} 20... fxg2 {[%clk 0:05:08.6]} 21. Kxg2 {[%clk 0:06:25.6]} 21... Rc8 {[%clk 0:04:58.3]} 22. d6 {[%clk 0:06:07.2]} 22... Bxd6 {[%clk 0:04:49.4]} 23. Nxd6 {[%clk 0:06:14.7]} 23... Qxd6 {[%clk 0:04:51.9]} 24. Be3 {[%clk 0:05:52.5]} 24... Nxd3 {[%clk 0:04:38.8]} 25. Qe4 {[%clk 0:05:38.8]} 25... Nf4+ {[%clk 0:04:35.5]} 26. Bxf4 {[%clk 0:05:37.5]} 26... exf4 {[%clk 0:04:44.1]} 27. Rad1 {[%clk 0:05:36.1]} 27... Qf6 {[%clk 0:04:12.1]} 28. f3 {[%clk 0:05:27]} 28... h5 {[%clk 0:04:20.5]} 29. Qd5 {[%clk 0:04:52.3]} 29... Qxb2+ {[%clk 0:04:22.2]} 30. Rf2 {[%clk 0:04:47.5]} 30... Qf6 {[%clk 0:04:08.3]} 31. Qxh5+ {[%clk 0:04:49.3]} 31... Kg8 {[%clk 0:04:07]} 32. Qd5+ {[%clk 0:04:42.9]} 32... Kh8 {[%clk 0:04:14.7]} 33. Kh1 {[%clk 0:04:44.1]} 33... Rc5 {[%clk 0:04:10.9]} 34. Qd7 {[%clk 0:04:27.9]} 34... a6 {[%clk 0:03:45.1]} 35. Rg2 {[%clk 0:04:15.2]} 35... Rh5 {[%clk 0:03:29.9]} 36. Rdg1 {[%clk 0:04:00.4]} 36... Rh7 {[%clk 0:03:14.9]} 37. Qb7 {[%clk 0:03:43.4]} 37... b5 {[%clk 0:02:58.7]} 38. Rg4 {[%clk 0:03:42.8]} 38... g5 {[%clk 0:02:30]} 39. Qe4 {[%clk 0:03:36.4]} 39... Re7 {[%clk 0:02:19.9]} 40. Qd5 {[%clk 0:03:01.3]} 40... Kg7 {[%clk 0:02:25.1]} 41. Rxg5+ {[%clk 0:03:01.6]} 41... Kh8 {[%clk 0:01:16.4]} 42. Rh5+ {[%clk 0:02:59]} 42... Rh7 {[%clk 0:01:25.1]} 43. Rxh7+ {[%clk 0:02:59.3]} 43... Kxh7 {[%clk 0:01:32.7]} 44. Rg5 {[%clk 0:02:26.8]} 44... Rd8 {[%clk 0:00:54.1]} 45. Rh5+ {[%clk 0:01:56.4]} 45... Kg6 {[%clk 0:00:51.4]} 46. Qc5 {[%clk 0:01:28.5]} 46... Rd2 {[%clk 0:00:53.7]} 47. Rd5 {[%clk 0:00:36.1]} 47... Qa1+ {[%clk 0:00:54.6]} 48. Qg1+ {[%clk 0:00:36.9]} 48... Qxg1+ {[%clk 0:00:59.9]} 49. Kxg1 {[%clk 0:00:41.3]} 49... Rxd5 {[%clk 0:01:09.5]} 50. Kg2 {[%clk 0:00:46.4]} 50... Rd2+ {[%clk 0:01:14.1]} 51. Kh3 {[%clk 0:00:55.1]} 51... Kg5 {[%clk 0:01:20.1]} 52. a3 {[%clk 0:00:57.3]} 52... Rd3 {[%clk 0:01:25]} 53. Kg2 {[%clk 0:01:04.1]} 53... Rxa3 {[%clk 0:01:32.5]} 54. h3 {[%clk 0:01:12.3]} 54... Kh4 {[%clk 0:01:37.1]} 55. Kf2 {[%clk 0:01:17.4]} 55... b4 {[%clk 0:01:46.1]} 0-1

[Event "Live Chess"]
[Site "Chess.com"]
[Date "2011.01.23"]
[Round "-"]
[White "hipposcottimus"]
[Black "MrL"]
[Result "0-1"]
[CurrentPosition "7R/pp1P2p1/6kp/5q2/8/8/P4PPP/6K1 w - -"]
[Timezone "UTC"]
[ECO "C51"]
[ECOUrl "https://www.chess.com/openings/Giuoco-Piano-Game-Evans-Accepted-McDonnell-Defense-6.O-O"]
[UTCDate "2011.01.23"]
[UTCTime "20:07:27"]
[WhiteElo "1418"]
[BlackElo "1367"]
[TimeControl "360+10"]
[Termination "MrL won on time"]
[StartTime "20:07:27"]
[EndDate "2011.01.23"]
[EndTime "20:18:06"]
[Link "https://www.chess.com/game/live/90636440"]

1. e4 {[%clk 0:06:00]} 1... e5 {[%clk 0:06:00]} 2. Nf3 {[%clk 0:06:07]} 2... Nc6 {[%clk 0:06:07.9]} 3. Bc4 {[%clk 0:06:15.9]} 3... Bc5 {[%clk 0:06:15.2]} 4. b4 {[%clk 0:06:23.5]} 4... Bxb4 {[%clk 0:06:20.6]} 5. c3 {[%clk 0:06:29.1]} 5... Bc5 {[%clk 0:06:29.5]} 6. O-O {[%clk 0:06:34.5]} 6... Nf6 {[%clk 0:06:37]} 7. d4 {[%clk 0:06:42]} 7... exd4 {[%clk 0:06:45]} 8. cxd4 {[%clk 0:06:51]} 8... Be7 {[%clk 0:06:49.9]} 9. Re1 {[%clk 0:06:47]} 9... O-O {[%clk 0:06:56.5]} 10. e5 {[%clk 0:06:52.1]} 10... Ng4 {[%clk 0:07:01.6]} 11. Nc3 {[%clk 0:06:39.4]} 11... Bb4 {[%clk 0:07:09.9]} 12. Bb2 {[%clk 0:06:40.6]} 12... Bxc3 {[%clk 0:07:13.8]} 13. Bxc3 {[%clk 0:06:50.1]} 13... d5 {[%clk 0:07:22.4]} 14. exd6 {[%clk 0:06:57]} 14... cxd6 {[%clk 0:07:26.1]} 15. d5 {[%clk 0:06:59.6]} 15... Nce5 {[%clk 0:07:30.6]} 16. Nxe5 {[%clk 0:07:07]} 16... Nxe5 {[%clk 0:07:34]} 17. Bxe5 {[%clk 0:07:16.6]} 17... dxe5 {[%clk 0:07:41.9]} 18. Rxe5 {[%clk 0:07:26.3]} 18... f6 {[%clk 0:07:35.3]} 19. Re7 {[%clk 0:07:25.3]} 19... Kh8 {[%clk 0:07:33.6]} 20. d6 {[%clk 0:07:25]} 20... Bd7 {[%clk 0:07:19.3]} 21. Bf7 {[%clk 0:07:25.2]} 21... Rc8 {[%clk 0:07:20.2]} 22. Be6 {[%clk 0:07:21.6]} 22... Bxe6 {[%clk 0:07:22.7]} 23. Rxe6 {[%clk 0:07:29.1]} 23... Rc6 {[%clk 0:07:27.4]} 24. Qd5 {[%clk 0:07:16.2]} 24... Re8 {[%clk 0:06:56.5]} 25. Rxe8+ {[%clk 0:06:47.2]} 25... Qxe8 {[%clk 0:07:04.7]} 26. d7 {[%clk 0:06:56.3]} 26... Qd8 {[%clk 0:07:13.2]} 27. Re1 {[%clk 0:07:00.6]} 27... h6 {[%clk 0:06:44.7]} 28. Re8+ {[%clk 0:07:01.6]} 28... Kh7 {[%clk 0:06:47.5]} 29. Qxc6 {[%clk 0:06:40]} 29... Qa5 {[%clk 0:06:37.6]} 30. Qe4+ {[%clk 0:06:31.5]} 30... f5 {[%clk 0:06:38.1]} 31. Qxf5+ {[%clk 0:06:24.5]} 31... Qxf5 {[%clk 0:06:42.8]} 32. Rh8+ {[%clk 0:05:38.1]} 32... Kg6 {[%clk 0:06:39.6]} 0-1